bitfinex-derivatives/quotes_ETHF0:USTF0_20210401
["timestamp","ask_amount","ask_price","bid_price","bid_amount"]
[1617251836222,2.90695,1922.1,1921.2,2.90695]
[1617251836421,64.4836,1921.9,1921.4,63.1924]
[1617251837921,2.90695,1921.5,1921.4,63.1924]
[1617251838121,3.94175,1921.5,1921.4,63.1924]
[1617251839021,2.90695,1921.5,1921.4,63.1924]
[1617251840626,3.95005,1921.5,1921.4,63.1924]
[1617251841226,2.90695,1921.5,1921.4,61.3849]
[1617251845930,2.90695,1921.5,1921.4,62.3458]
[1617251848030,2.90695,1921.5,1921.4,65.25275]
[1617251850735,2.90695,1921.5,1921.4,3.86785]
[1617251853037,2.90695,1921.5,1921.4,2.90695]
[1617251853237,2.90695,1921.5,1921.1,80.3073]
[1617251854137,87.4836,1921.6,1921.2,2.90695]
[1617251856138,2.90695,1921.3,1921.2,2.90695]
[1617251866352,2.90695,1921.3,1921.1,80.3073]
[1617251868154,2.90695,1921.3,1921.1,83.21425]
[1617251883366,2.90695,1921.3,1921.1,2.90695]
[1617251893177,2.90695,1921.3,1921.2,79.397]
[1617251913493,2.90695,1921.3,1921.0,2.90695]
[1617251913693,84.6133,1921.0,1920.4,13.9711]
[1617251913892,33.85955,1921.3,1919.7,4.26298713]
[1617251914292,102.7812985,1921.1,1919.6,90.11188345]
[1617251914492,4.09465,1920.3,1920.2,16.712]
[1617251916293,4.09465,1920.3,1920.2,13.80505]
[1617251921099,81.22095,1920.3,1920.2,13.80505]
[1617251925000,4.09465,1920.3,1920.2,13.80505]
[1617251925200,2.90695,1920.3,1920.2,13.80505]
[1617251925801,0.01513,1921.1,1920.2,13.80505]
[1617251926003,0.01512093,1921.2,1921.1,79.7725]
[1617251926203,0.06048373,1921.4,1921.1,79.7725]
[1617251926204,1.06262741,1921.5,1921.1,0.9505]
[1617251926404,1.06262741,1921.5,1921.2,62.4132]
[1617251926604,1.06262741,1921.5,1921.2,65.32015]
[1617251926805,1.0475,1921.5,1921.2,65.32015]
[1617251928507,2.90695,1921.3,1921.2,65.32015]
[1617251929608,2.90695,1921.3,1921.2,62.4132]
[1617251930610,2.90695,1921.3,1921.2,65.32015]
[1617251930809,2.90695,1921.3,1921.2,62.4132]
[1617251931009,2.90695,1921.3,1921.1,0.9505]
[1617251931209,2.90695,1921.3,1920.2,13.80505]
[1617251931409,76.55255,1921.3,1920.8,73.6456]
[1617251932611,2.90695,1920.9,1920.8,2.90695]
[1617251956723,2.90695,1920.9,1920.8,4.24925]
[1617251958025,2.90695,1920.9,1920.8,2.90695]
[1617251979154,3.93955,1920.9,1920.8,2.90695]
[1617251979353,1.0326,1920.9,1920.8,2.90695]
[1617251984666,68.3898,1921.5,1920.8,2.90695]
[1617251984864,68.3898,1921.5,1921.3,70.7293]
[1617251985064,68.40493537,1921.5,1921.3,70.7293]
[1617251985467,1.06263537,1921.5,1921.4,2.90695]
[1617251985667,1.0475,1921.5,1921.4,2.90695]
[1617251986668,0.01513552,1921.6,1921.4,2.90695]
[1617251987469,2.92208552,1921.6,1921.4,2.90695]
[1617251987671,2.92208552,1921.6,1921.1,1.1792]
[1617251988070,2.92208552,1921.6,1921.5,62.0234]
[1617251989671,2.92208552,1921.6,1921.4,2.90695]
[1617251990474,2.95236589,1921.6,1921.4,2.90695]
[1617251990873,0.01513999,1921.5,1921.4,2.90695]
[1617251991076,1.06093999,1921.5,1921.4,2.90695]
[1617251991675,1.0458,1921.5,1921.4,2.90695]
[1617251993975,2.92208847,1921.6,1921.4,2.90695]
[1617251994980,2.95237228,1921.6,1921.4,2.90695]
[1617251995179,0.04542228,1921.6,1920.6,110.3539]
[1617251995379,0.04542228,1921.6,1920.6,15.2356]
[1617251995581,0.04542228,1921.6,1921.4,81.23965]
[1617251995779,0.01513847,1921.6,1921.4,81.23965]
[1617251997587,2.90695,1921.5,1921.4,81.23965]
[1617251997784,3.95895,1921.5,1921.4,81.23965]
[1617251998087,2.90695,1921.5,1921.4,81.23965]
[1617252000386,3.96335,1921.5,1921.4,81.23965]
[1617252000587,2.90695,1921.5,1921.4,81.23965]
[1617252001387,2.92210513,1921.5,1921.4,81.23965]
[1617252001588,3.95510513,1921.5,1921.4,81.23965]
[1617252001787,3.95510513,1921.5,1921.4,78.3327]
[1617252003688,3.97024011,1921.5,1921.4,78.3327]
[1617252004089,33.97024011,1921.5,1921.4,77.592]
[1617252004490,34.00049951,1921.5,1919.9,15.0366]
[1617252004687,84.663,1920.9,1920.8,84.663]
[1617252004890,85.6919,1920.9,1920.8,84.663]
[1617252005089,84.663,1920.9,1920.8,84.663]
[1617252005791,87.56995,1920.9,1920.8,84.663]
[1617252006091,88.61365,1920.9,1920.8,84.663]
[1617252007690,88.61365,1920.9,1920.8,87.56995]
[1617252008590,3.95065,1920.9,1920.8,2.90695]
[1617252011691,3.95065,1920.9,1920.6,2.90695]
[1617252011892,4.90075,1920.9,1920.6,2.90695]
[1617252012092,4.90075,1920.9,1919.9,15.0366]
[1617252012294,83.2885,1920.8,1920.6,83.2885]
[1617252013695,2.90695,1920.7,1920.6,83.2885]
[1617252014495,2.90695,1920.7,1920.5,2.90695]
[1617252017902,2.90695,1920.7,1919.9,15.0366]
[1617252018102,2.90695,1920.7,1920.6,62.8058]
[1617252020804,2.90695,1920.7,1920.1,2.90695]
[1617252021806,2.00889928,1920.9,1920.4,2.90695]
[1617252022007,2.00889928,1920.9,1920.7,73.6196]
[1617252022208,1.05879928,1920.9,1920.7,73.6196]
[1617252023009,1.0437,1920.9,1920.7,73.6196]
[1617252023811,2.90695,1920.8,1920.7,73.6196]
[1617252026117,2.90695,1920.8,1919.9,15.0366]
[1617252026317,2.90695,1920.8,1920.5,70.7483]
[1617252026518,70.7483,1920.6,1920.5,70.7483]
[1617252027920,73.65525,1920.6,1920.5,70.7483]
[1617252029519,73.65525,1920.6,1920.5,69.9558]
[1617252029720,73.65525,1920.6,1920.5,69.3019]
[1617252030921,2.90695,1920.6,1919.9,2.90695]
[1617252031323,2.90695,1920.6,1920.5,76.9575]
[1617252053940,2.90695,1920.6,1920.2,13.80505]
[1617252054344,2.90695,1920.3,1920.2,13.80505]
[1617252054544,2.90695,1920.3,1920.2,84.55655]
[1617252062455,2.90695,1920.3,1920.2,13.80505]
[1617252065059,2.90695,1920.3,1920.2,13.56885]
[1617252065260,2.90695,1920.3,1920.2,12.28865]
[1617252065458,2.90695,1920.3,1920.2,11.45695]
[1617252065662,2.90695,1920.3,1920.2,10.61125]
[1617252065859,2.90695,1920.3,1920.2,10.03585]
[1617252066460,2.90695,1920.3,1920.2,9.82925]
[1617252069266,2.90695,1920.3,1920.2,9.69625]
[1617252070065,2.90695,1920.3,1920.2,9.43265]
[1617252071667,2.90695,1920.3,1920.2,8.40715]
[1617252072870,2.90695,1920.3,1920.2,8.34375]
[1617252076579,2.90695,1920.3,1920.2,11.2507]
[1617252077176,2.90695,1920.3,1920.2,8.34375]
[1617252077576,2.90695,1920.3,1920.2,93.75105]
[1617252084585,2.90695,1920.3,1920.2,94.71135]
[1617252084984,2.90695,1920.3,1920.2,9.30405]
[1617252085589,3.96305,1920.3,1920.2,9.30405]
[1617252085788,3.96305,1920.3,1920.2,8.34375]
[1617252086687,2.90695,1920.3,1920.2,8.34375]
[1617252087089,3.82125,1920.3,1920.2,8.34375]
[1617252099502,2.90695,1920.3,1920.2,8.34375]
[1617252101903,2.90695,1920.3,1920.2,70.62675]
[1617252103404,2.90695,1920.3,1920.2,8.34375]
[1617252107008,2.90695,1920.3,1920.2,9.52785]
[1617252108209,2.90695,1920.3,1920.2,8.34375]
[1617252111114,2.90695,1920.3,1920.2,89.82925]
[1617252114417,2.90695,1920.3,1920.2,88.30235]
[1617252120623,2.90695,1920.3,1920.2,6.81685]
[1617252123724,3.88485,1920.3,1920.2,6.81685]
[1617252124125,3.88485,1920.3,1920.2,84.08485]
[1617252125426,2.90695,1920.3,1920.2,84.08485]
[1617252128428,4.13535,1920.3,1920.2,84.08485]
[1617252136436,2.90695,1920.3,1920.2,84.08485]
[1617252140038,2.90695,1920.3,1920.2,6.81685]
[1617252140240,4.17365,1920.3,1920.2,6.81685]
[1617252148948,4.17365,1920.3,1920.2,6.05075]
[1617252150854,4.17365,1920.3,1920.2,5.27915]
[1617252151257,4.18880667,1920.3,1920.2,5.27915]
[1617252152955,2.92210667,1920.3,1920.2,5.27915]
[1617252156660,2.92210667,1920.3,1920.2,72.64445]
[1617252157559,2.90695,1920.3,1920.2,72.64445]
[1617252158359,2.92211079,1920.3,1920.2,72.64445]
[1617252158760,2.90695,1920.3,1920.2,72.64445]
[1617252161563,2.92211996,1920.3,1920.2,72.64445]
[1617252162162,2.90695,1920.3,1920.2,72.64445]
[1617252163665,2.95249014,1920.3,1920.2,72.64445]
[1617252164068,2.90695,1920.3,1920.2,72.64445]
[1617252165670,2.90695,1920.3,1920.2,5.27915]
[1617252165871,2.95248932,1920.3,1920.2,6.24815]
[1617252166271,2.90695,1920.3,1920.2,6.24815]
[1617252167272,2.90695,1920.3,1920.2,9.1551]
[1617252167473,2.90695,1920.3,1920.2,8.1861]
[1617252167674,2.90695,1920.3,1920.2,5.27915]
[1617252169677,75.99245,1920.3,1920.2,5.27915]
[1617252172180,2.90695,1920.3,1920.2,5.27915]
[1617252173181,2.90695,1920.3,1920.2,72.59735]
[1617252174887,2.90695,1920.3,1920.2,5.27915]
[1617252175284,2.90695,1920.3,1920.2,8.1861]
[1617252177188,73.99895,1920.3,1920.2,8.1861]
[1617252184292,2.90695,1920.3,1920.2,8.1861]
[1617252187195,2.90695,1920.3,1920.2,5.27915]
[1617252190000,2.90695,1920.3,1920.2,6.54395]
[1617252193500,2.90695,1920.5,1920.2,9.4509]
[1617252195505,2.90695,1920.5,1920.4,2.90695]
[1617252215940,2.90695,1920.5,1920.2,5.27915]
[1617252217540,2.90695,1920.5,1920.4,2.90695]
[1617252245774,2.90695,1920.5,1920.2,5.27915]
[1617252245974,67.3539,1920.4,1920.2,72.63305]
[1617252246176,0.04560676,1920.4,1920.2,5.27915]
[1617252246376,0.04560676,1920.4,1920.2,3.98985]
[1617252246577,0.30381371,1920.3,1920.2,3.98985]
[1617252246776,0.30381371,1920.3,1920.2,2.47515]
[1617252246977,0.72882126,1920.4,1920.2,2.47515]
[1617252247377,0.06059669,1920.3,1920.2,2.47515]
[1617252247576,0.06059669,1920.3,1920.2,2.19525]
[1617252247777,0.06059669,1920.3,1920.2,1.93665]
[1617252247778,3.05842431,1920.3,1920.2,1.93665]
[1617252248176,3.20984676,1920.3,1920.2,0.64695]
[1617252248376,3.20984676,1920.3,1919.8,66.71195]
[1617252248577,3.05842261,1920.3,1919.8,66.71195]
[1617252248776,76.2103,1919.9,1919.8,66.71195]
[1617252248976,77.18654418,1919.9,1919.8,66.71195]
[1617252249376,77.18654418,1919.9,1919.8,66.45265]
[1617252249779,80.09349418,1919.9,1919.8,66.45265]
[1617252250177,80.12377428,1919.9,1919.8,66.45265]
[1617252250579,80.09349418,1919.9,1919.8,66.45265]
[1617252251379,80.09349418,1919.9,1919.8,66.13445]
[1617252251880,80.09349418,1919.9,1919.8,66.06225]
[1617252252281,80.09349418,1919.9,1919.8,65.54085]
[1617252252479,80.09349418,1919.9,1919.8,62.32405]
[1617252253280,80.09349418,1919.9,1919.8,59.74745]
[1617252254081,80.09349418,1919.9,1919.8,58.46435]
[1617252254284,3.88319418,1919.9,1919.2,14.8355]
[1617252254481,3.9134693,1919.9,1918.4,1.0]
[1617252254884,61.6845,1918.6,1918.4,1.0]
[1617252255082,62.9937,1918.6,1918.4,1.0]
[1617252255685,2.90695,1918.5,1918.4,1.0]
[1617252260993,2.90695,1918.5,1918.0,61.6845]
[1617252261793,2.90695,1918.1,1918.0,61.6845]
[1617252265695,3.96145,1918.1,1918.0,61.6845]
[1617252268495,3.96145,1918.1,1917.7,2.90695]
[1617252268496,4.84805,1918.1,1917.7,2.90695]
[1617252268702,62.8085,1917.9,1917.7,2.90695]
[1617252269698,62.8085,1917.9,1917.6,62.8085]
[1617252269899,2.90695,1917.7,1917.6,62.8085]
[1617252270099,2.90695,1917.7,1917.1,2.90695]
[1617252270100,4.24675,1917.7,1917.1,2.90695]
[1617252270299,77.2722,1917.3,1917.1,2.90695]
[1617252270500,78.5829,1917.3,1917.1,2.90695]
[1617252271999,2.90695,1917.2,1917.1,2.90695]
[1617252273401,2.90695,1917.2,1916.9,93.8657]
[1617252273900,2.90695,1917.0,1916.9,93.8657]
[1617252274101,2.90695,1917.0,1916.9,91.2817]
[1617252275000,3.95825,1917.0,1916.9,91.2817]
[1617252279606,3.95825,1917.0,1916.9,14.0095]
[1617252284312,3.95825,1917.0,1916.9,13.907]
[1617252284512,59.3562,1916.9,1916.6,2.0]
[1617252285012,3.95825,1917.0,1916.6,2.0]
[1617252286217,2.90695,1916.7,1916.6,2.0]
[1617252287416,2.90695,1916.7,1916.6,1.6264]
[1617252290218,84.8798,1917.6,1916.6,4.53335]
[1617252290421,84.8798,1917.6,1917.0,72.8255]
[1617252290620,84.8798,1917.6,1917.0,73.7373]
[1617252292121,84.8798,1917.6,1917.1,2.90695]
[1617252294226,2.90695,1917.2,1917.1,2.90695]
[1617252295828,80.50415,1917.2,1917.1,2.90695]
[1617252296828,2.90695,1917.2,1917.1,2.90695]
[1617252297328,2.90695,1917.2,1917.1,75.02915]
[1617252301933,2.90695,1917.2,1917.1,2.90695]
[1617252309439,2.90695,1917.2,1917.1,3.95685]
[1617252311841,2.90695,1917.2,1917.1,2.90695]
[1617252318053,65.75195,1917.2,1917.1,2.90695]
[1617252319053,66.83225,1917.2,1917.1,2.90695]
[1617252319555,66.83225,1917.2,1916.5,1.6264]
[1617252319754,3.98725,1917.2,1916.5,1.6264]
[1617252319956,59.683,1916.8,1916.5,1.6264]
[1617252320156,60.6431,1916.8,1916.5,1.6264]
[1617252320354,60.6431,1916.8,1916.7,2.90695]
[1617252321354,0.9601,1916.8,1916.7,2.90695]
[1617252321556,0.9601,1916.8,1916.5,1.6264]
[1617252322555,2.90695,1916.6,1916.5,1.6264]
[1617252323555,3.82665,1916.6,1916.5,1.6264]
[1617252324757,82.20935,1916.6,1916.5,1.6264]
[1617252325757,82.20935,1916.6,1916.5,0.5727]
[1617252327958,82.20935,1916.6,1916.5,0.4785]
[1617252328157,82.20935,1916.6,1915.9,2.90695]
[1617252328358,73.0863,1916.1,1915.9,2.90695]
[1617252328558,2.90695,1916.0,1915.9,2.90695]
[1617252334862,2.90695,1916.0,1915.9,2.85365]
[1617252335062,2.90695,1916.0,1915.9,2.02385]
[1617252336062,2.90695,1916.0,1914.9,78.428]
[1617252336263,63.9091,1915.9,1914.9,78.428]
[1617252336665,63.9091,1915.9,1915.7,2.90695]
[1617252337366,64.9425,1915.9,1915.7,2.90695]
[1617252338672,2.90695,1915.8,1915.5,2.90695]
[1617252340681,2.90695,1915.6,1915.5,2.90695]
[1617252340882,3.87575,1915.6,1915.5,2.90695]
[1617252344890,3.87575,1915.6,1915.3,2.90695]
[1617252345490,2.90695,1915.6,1915.3,2.90695]
[1617252346890,2.90695,1915.4,1915.3,2.90695]
[1617252347791,2.90695,1915.4,1914.9,78.428]
[1617252347792,2.90695,1915.4,1914.9,14.4995]
[1617252347991,3.97275,1915.4,1914.9,14.4995]
[1617252348692,72.2572,1915.0,1914.9,14.4995]
[1617252348895,75.16415,1915.0,1914.9,17.40645]
[1617252354900,4.02275,1915.0,1914.9,17.40645]
[1617252355100,2.90695,1915.0,1914.9,17.40645]
[1617252356006,2.90695,1915.0,1914.9,14.4995]
[1617252356206,83.1999,1914.9,1914.7,3.7816]
[1617252356406,83.1999,1914.9,1914.7,3.597]
[1617252356908,2.90695,1914.8,1914.7,3.597]
[1617252361313,2.90695,1914.8,1914.4,2.90695]
[1617252361511,2.90695,1914.8,1914.7,3.597]
[1617252363115,2.90695,1914.8,1914.7,6.50395]
[1617252363917,2.90695,1914.8,1914.7,74.28885]
[1617252364116,2.90695,1914.8,1914.7,73.90285]
[1617252364319,2.90695,1914.8,1914.7,73.82715]
[1617252364516,2.90695,1914.8,1914.7,72.89345]
[1617252364719,2.90695,1914.8,1914.7,71.88345]
[1617252366119,2.90695,1914.8,1914.7,71.25405]
[1617252366319,2.90695,1914.8,1914.7,70.48305]
[1617252374532,2.90695,1914.8,1914.7,71.49085]
[1617252374933,2.90695,1914.8,1914.7,3.70595]
[1617252377135,2.90695,1914.8,1914.7,84.05375]
[1617252382639,2.90695,1914.8,1914.7,3.70595]
[1617252384540,1.0334,1915.9,1914.7,3.70595]
[1617252384741,1.0334,1915.9,1914.8,78.3731]
[1617252385343,1.0334,1915.9,1915.2,2.90695]
[1617252385541,1.0334,1915.9,1915.2,3.78045]
[1617252385743,1.0334,1915.9,1915.3,83.2512]
[1617252387347,2.90695,1915.4,1915.3,83.2512]
[1617252387549,2.90695,1915.4,1915.2,3.78045]
[1617252387947,72.9066,1917.0,1915.2,3.78045]
[1617252388148,72.9066,1917.0,1915.4,72.8986]
[1617252388549,31.0414,1916.9,1915.4,72.8986]
[1617252388748,31.0414,1916.9,1915.2,3.78045]
[1617252388949,58.7155,1916.2,1915.2,3.78045]
[1617252389349,58.7155,1916.2,1915.8,3.99725]
[1617252390850,58.7155,1916.2,1915.8,2.90695]
[1617252391249,2.90695,1915.9,1915.8,2.90695]
[1617252403864,3.95645,1915.9,1915.8,2.90695]
[1617252404265,2.90695,1915.9,1915.8,2.90695]
[1617252411873,2.90695,1915.9,1915.8,4.23905]
[1617252426594,3.96055,1915.9,1915.8,2.90695]
[1617252427394,2.90695,1915.9,1915.8,2.90695]
[1617252431395,3.95425,1915.9,1915.8,2.90695]
[1617252431597,2.90695,1915.9,1915.8,2.90695]
[1617252433496,17.90695,1915.9,1915.8,2.90695]
[1617252439201,18.94505,1915.9,1915.8,2.90695]
[1617252439402,17.90695,1915.9,1915.8,2.90695]
[1617252441404,18.94935,1915.9,1915.8,2.90695]
[1617252441605,17.90695,1915.9,1915.8,2.90695]
[1617252443807,18.95145,1915.9,1915.8,4.00445]
[1617252444712,17.90695,1915.9,1915.8,4.00445]
[1617252445111,17.90695,1915.9,1915.8,2.90695]
[1617252451616,15.0,1915.9,1915.1,0.8422]
[1617252452216,15.0,1915.9,1915.7,2.90695]
[1617252454117,2.90695,1915.8,1915.7,2.90695]
[1617252460426,16.0487,1915.9,1915.5,1.3086]
[1617252460625,16.0487,1915.9,1915.5,1.3175]
[1617252460626,15.0,1915.9,1915.5,1.3175]
[1617252460829,15.0,1915.9,1915.8,2.90695]
[1617252461629,16.0561,1915.9,1915.8,2.90695]
[1617252462731,15.0,1915.9,1915.8,2.90695]
[1617252462932,17.90695,1915.9,1915.8,2.90695]
[1617252463831,18.95445,1915.9,1915.8,2.90695]
[1617252464033,17.90695,1915.9,1915.8,2.90695]
[1617252465835,18.95435,1915.9,1915.8,2.90695]
[1617252468840,18.95435,1915.9,1915.8,4.27325]
[1617252470141,18.95435,1915.9,1915.8,2.90695]
[1617252471642,17.90695,1915.9,1915.8,2.90695]
[1617252473846,18.96205,1915.9,1915.8,2.90695]
[1617252474849,17.90695,1915.9,1915.8,2.90695]
[1617252480953,18.96105,1915.9,1915.8,2.90695]
[1617252481156,17.90695,1915.9,1915.8,2.90695]
[1617252481557,15.0,1915.9,1915.8,2.90695]
[1617252489867,15.0,1915.9,1915.8,72.61275]
[1617252491167,15.0,1915.9,1915.8,2.90695]
[1617252492566,79.5403,1915.9,1915.8,2.90695]
[1617252492767,80.5799,1915.9,1915.8,2.90695]
[1617252493171,83.48685,1915.9,1915.8,2.90695]
[1617252493369,82.44725,1915.9,1915.8,2.90695]
[1617252494270,17.90695,1915.9,1915.8,2.90695]
[1617252494671,47.90695,1915.9,1915.1,2.584]
[1617252494873,47.90695,1915.9,1914.8,99.3668]
[1617252495072,2.90695,1914.9,1914.8,99.3668]
[1617252497576,2.90695,1914.9,1914.8,14.5662]
[1617252508993,63.9952,1915.7,1915.3,68.9843]
[1617252509193,2.90695,1915.6,1915.4,2.90695]
[1617252516010,2.90695,1915.6,1915.3,68.9843]
[1617252517307,63.9952,1915.7,1915.5,2.90695]
[1617252517708,63.9952,1915.7,1915.3,68.9843]
[1617252519309,63.9952,1915.7,1915.5,2.90695]
[1617252519509,63.9952,1915.7,1915.5,3.99725]
[1617252521011,63.9952,1915.7,1915.5,2.90695]
[1617252521412,2.90695,1915.6,1915.5,2.90695]
[1617252524213,15.0,1915.9,1915.6,83.5853]
[1617252525414,15.0,1915.9,1915.8,2.90695]
[1617252536727,15.0,1915.9,1915.8,68.52105]
[1617252537127,15.0,1915.9,1915.8,2.90695]
[1617252537527,17.90695,1915.9,1915.8,2.90695]
[1617252537930,105.27345,1915.9,1915.8,2.90695]
[1617252538631,105.27345,1915.9,1915.4,87.3788]
[1617252538833,19.13805,1915.9,1915.1,3.684]
[1617252539236,77.9193,1915.4,1915.1,3.684]
[1617252539435,79.2173,1915.4,1915.3,2.90695]
[1617252539836,1.298,1915.4,1915.3,2.90695]
[1617252540236,1.298,1915.4,1915.3,69.86055]
[1617252540837,1.298,1915.4,1915.3,2.90695]
[1617252541342,1.298,1915.4,1915.1,3.684]
[1617252541539,1.298,1915.4,1915.1,6.59095]
[1617252541742,66.1523,1915.2,1915.1,6.59095]
[1617252543442,69.05925,1915.2,1915.1,6.59095]
[1617252544044,69.05925,1915.2,1915.1,5.49095]
[1617252544245,69.05925,1915.2,1915.1,6.53825]
[1617252544446,2.90695,1915.2,1915.1,6.53825]
[1617252545445,2.90695,1915.4,1915.1,6.53825]
[1617252547548,2.90695,1915.2,1915.1,6.53825]
[1617252547747,2.90695,1915.2,1915.1,3.95425]
[1617252551160,4.20785,1915.2,1915.1,3.95425]
[1617252551461,4.20785,1915.2,1915.0,69.9228]
[1617252552564,4.20785,1915.2,1915.0,70.9793]
[1617252552765,2.90695,1915.2,1915.0,70.9793]
[1617252553566,2.90695,1915.2,1915.1,2.90695]
[1617252555666,88.45605,1915.2,1915.1,2.90695]
[1617252558867,2.90695,1915.2,1915.1,2.90695]
[1617252559667,2.90695,1915.2,1915.1,83.72695]
[1617252563374,2.90695,1915.2,1915.1,84.76025]
[1617252563674,2.90695,1915.2,1915.1,3.94025]
[1617252563874,2.90695,1915.2,1915.1,2.90695]
[1617252569484,2.90695,1915.2,1915.1,81.29785]
[1617252570281,84.7131,1915.9,1915.1,81.29785]
[1617252571284,15.0,1915.9,1915.1,2.90695]
[1617252571484,16.046,1915.9,1915.6,64.8573]
[1617252571685,16.046,1915.9,1915.8,2.90695]
[1617252571887,15.0,1915.9,1915.8,2.90695]
[1617252573688,17.90695,1915.9,1915.8,2.90695]
[1617252575490,79.0841,1915.8,1914.8,14.5662]
[1617252575690,79.0841,1915.8,1915.3,2.90695]
[1617252575892,79.0841,1915.8,1914.8,15.6219]
[1617252576092,79.0841,1915.8,1914.8,14.5662]
[1617252577094,91.6054,1915.9,1915.1,74.6602]
[1617252577794,91.6054,1915.9,1915.5,2.90695]
[1617252579796,2.90695,1915.6,1915.5,2.90695]
[1617252585600,15.0,1915.9,1915.5,2.90695]
[1617252585800,15.0,1915.9,1915.8,2.90695]
[1617252589403,16.0329,1915.9,1915.8,2.90695]
[1617252589604,15.0,1915.9,1915.8,2.90695]
[1617252589804,17.90695,1915.9,1915.8,2.90695]
[1617252590604,18.95345,1915.9,1915.8,2.90695]
[1617252594111,77.6401,1915.8,1914.8,14.5662]
[1617252594313,50.21645,1915.9,1914.8,14.5662]
[1617252594510,2.0,1915.8,1914.8,14.5662]
[1617252594910,82.6395,1915.7,1914.8,14.5662]
[1617252595116,66.3993,1914.9,1914.8,14.5662]
[1617252595512,67.3139,1914.9,1914.8,14.5662]
[1617252595913,67.3139,1914.9,1914.8,17.47315]
[1617252596313,67.3139,1914.9,1914.8,18.52955]
[1617252596513,67.3139,1914.9,1914.8,17.47315]
[1617252596717,0.9146,1914.9,1914.8,17.47315]
[1617252597913,3.82155,1914.9,1914.8,14.5662]
[1617252599415,2.90695,1914.9,1914.8,14.5662]
[1617252600015,2.90695,1914.9,1914.8,17.47315]
[1617252600414,2.90695,1914.9,1914.8,2.90695]
[1617252602015,2.90695,1914.9,1914.8,3.94555]
[1617252602216,2.90695,1914.9,1914.8,2.90695]
[1617252606922,77.70205,1914.9,1914.8,2.90695]
[1617252609323,2.90695,1914.9,1914.8,2.90695]
[1617252609525,2.90695,1914.9,1914.2,4.26733752]
[1617252609726,70.5244,1914.8,1914.2,4.26733752]
[1617252609925,70.5244,1914.8,1913.7,4.26848339]
[1617252610126,70.5244,1914.8,1914.4,2.90695]
[1617252610526,100.5244,1914.8,1914.4,2.90695]
[1617252610727,100.5244,1914.8,1913.6,4.26875191]
[1617252611327,100.5244,1914.8,1913.5,1.83588306]
[1617252611929,100.5244,1914.8,1913.4,70.5244]
[1617252612128,68.7444,1913.5,1913.1,13.9636]
[1617252612528,0.8853,1913.5,1913.1,13.9636]
[1617252614234,0.8853,1913.5,1913.4,2.90695]
[1617252615631,2.90695,1913.7,1913.4,2.90695]
[1617252615831,82.0766,1914.1,1913.4,84.98355]
[1617252616231,2.90695,1914.6,1914.0,2.90695]
[1617252616433,2.90695,1914.6,1914.0,4.05005]
[1617252618234,2.90695,1914.6,1914.5,2.90695]
[1617252618432,2.90695,1914.6,1914.5,3.94135]
[1617252618835,81.0705,1915.4,1914.6,81.0705]
[1617252620237,81.0705,1915.4,1914.9,2.90695]
[1617252620439,81.0705,1915.4,1914.9,4.27395]
[1617252621741,46.0465,1915.9,1914.9,2.90695]
[1617252621945,87.9095,1914.9,1913.9,15.008]
[1617252622142,87.9095,1914.9,1913.9,13.908]
[1617252622341,3.93565,1914.0,1913.9,16.81495]
[1617252623547,33.93565,1914.0,1913.0,1.1]
[1617252623938,79.798,1912.8,1912.7,86.9089]
[1617252624138,81.0317,1912.8,1912.7,86.9089]
[1617252624337,83.93865,1912.8,1912.7,86.9089]
[1617252624739,83.93865,1912.8,1912.5,2.90695]
[1617252624740,4.14065,1912.8,1912.5,2.90695]
[1617252625140,76.979,1912.7,1912.5,2.90695]
[1617252625541,4.14065,1912.8,1912.3,8.0]
[1617252625744,34.14065,1912.8,1912.3,8.0]
[1617252625942,34.14065,1912.8,1912.3,7.3151]
[1617252626344,78.63335,1912.4,1912.3,7.0751]
[1617252626644,4.02145,1912.4,1912.3,7.0751]
[1617252626844,6.02145,1912.4,1911.5,0.5]
[1617252627049,36.02145,1912.4,1911.5,0.5]
[1617252627445,36.02145,1912.4,1910.9,4.25641859]
[1617252627650,80.8626,1911.0,1910.8,4.25648042]
[1617252627848,80.8626,1911.0,1910.5,1.1]
[1617252627849,81.7863,1911.0,1910.7,4.25653679]
[1617252628248,81.7863,1911.0,1910.5,5.3564726]
[1617252628447,0.9237,1911.0,1910.9,2.90695]
[1617252630448,3.83065,1911.0,1910.9,2.90695]
[1617252630648,3.83065,1911.0,1910.9,2.33165]
[1617252630850,3.83065,1911.0,1910.4,1.1]
[1617252631848,3.83065,1911.0,1909.8,0.5]
[1617252632049,73.4062,1910.8,1909.9,1.1]
[1617252632250,5.83065,1911.0,1909.9,1.1]
[1617252632450,32.9237,1911.0,1910.1,2.90695]
[1617252632650,60.4057,1910.5,1910.1,2.90695]
[1617252633050,65.2654,1911.0,1910.1,2.90695]
[1617252633250,65.2654,1911.0,1910.1,3.74685]
[1617252634054,14.635,1913.0,1910.1,4.84685]
[1617252634455,14.635,1913.0,1911.7,2.90695]
[1617252634456,69.8361,1912.5,1911.7,2.90695]
[1617252634655,69.8361,1912.5,1911.7,4.01705]
[1617252635255,69.8361,1912.5,1911.7,1.1101]
[1617252635654,69.8361,1912.5,1910.4,69.8361]
[1617252635854,71.139,1912.5,1910.4,69.8361]
[1617252636454,71.139,1912.5,1911.6,2.90695]
[1617252636956,1.0521,1913.1,1911.6,2.90695]